bitfinex/quotes_ETHUSD_20250802
["timestamp","ask_amount","ask_price","bid_price","bid_amount"]
[1754096074428,0.5911,3514.1,3513.6,0.1424]
[1754096075118,0.1424,3514.1,3513.7,0.4547]
[1754096076210,3.29452445,3514.0,3513.6,0.1424]
[1754096076508,0.1424,3514.1,3513.6,0.1424]
[1754096076808,0.1424,3514.1,3513.7,0.4547]
[1754096076973,0.1424,3514.1,3513.6,2.98848127]
[1754096077172,0.1424,3514.1,3513.7,0.4547]
[1754096077410,0.1424,3514.1,3513.6,2.98848127]
[1754096077635,0.1424,3514.1,3513.8,0.4547]
[1754096078241,0.4487,3514.0,3513.4,2.84623887]
[1754096078415,0.4487,3514.0,3513.5,0.1424]
[1754096078615,0.4487,3514.0,3513.5,2.98856458]
[1754096079315,0.4487,3514.0,3513.5,0.1424]
[1754096079514,0.1424,3514.1,3513.6,3.30072502]
[1754096079716,0.1424,3514.1,3513.7,0.4547]
[1754096079998,0.1424,3514.1,3513.5,0.1424]
[1754096080199,1.32348638,3514.1,3513.5,0.1424]
[1754096080405,3.29448069,3514.0,3513.3,2.8463131]
[1754096080605,2.98827832,3513.9,3513.4,0.1424]
[1754096080922,2.98827832,3513.9,3513.3,2.84632312]
[1754096080923,0.1424,3513.7,3513.3,2.84632312]
[1754096081133,0.1424,3513.7,3513.4,0.4547]
[1754096081306,0.1424,3513.7,3513.5,0.4547]
[1754096082343,0.1424,3513.7,3513.3,2.84632312]
[1754096082704,3.29483754,3513.6,3513.2,0.1424]
[1754096082943,7.02,3514.0,3513.5,0.1424]
[1754096083240,7.02,3514.0,3513.7,2.84594566]
[1754096083442,7.02,3514.0,3513.8,0.4547]
[1754096083805,7.02,3514.0,3513.9,0.4547]
[1754096085038,4.751,3514.6,3514.0,2.84569566]
[1754096085238,0.1424,3514.5,3514.0,2.98809566]
[1754096085743,0.72699753,3514.8,3514.0,2.98809566]
[1754096085744,0.27829753,3514.8,3514.7,2.84519304]
[1754096086047,0.27829753,3514.8,3514.7,3.76999304]
[1754096086702,3.65244078,3516.6,3514.7,5.6928]
[1754096086703,1.2574534,3516.6,3514.7,5.6928]
[1754096086903,0.60254534,3516.5,3514.8,1.72860947]
[1754096087104,0.8087534,3516.6,3515.2,2.84478834]
[1754096087446,2.84216119,3518.5,3514.8,0.80380947]
[1754096087447,0.4487,3516.9,3515.3,5.6938]
[1754096087618,0.4487,3516.9,3515.4,0.4547]
[1754096087816,2.84252603,3518.0,3515.5,0.4701]
[1754096087817,0.4487,3517.2,3515.5,0.4701]
[1754096088138,0.4487,3517.2,3515.6,0.4547]
[1754096088139,4.787,3517.2,3515.6,0.4547]
[1754096088350,4.787,3517.2,3515.7,0.4701]
[1754096088502,0.97227,3517.1,3515.8,0.4547]
[1754096088707,0.97227,3517.1,3515.5,4.787]
[1754096088708,0.9987,3517.0,3515.4,4.789]
[1754096088940,2.84398953,3516.2,3515.4,0.4547]
[1754096089251,2.84402197,3516.2,3515.4,0.4547]
[1754096089540,0.55,3516.0,3514.8,0.4547]
[1754096089746,5.2387,3515.9,3514.8,3.29977831]
[1754096089948,5.2387,3515.9,3514.8,0.4547]
[1754096090248,0.4487,3515.9,3514.8,3.29978928]
[1754096090452,2.84430301,3515.8,3515.0,2.84492937]
[1754096090754,3.47370155,3515.7,3514.8,3.29973288]
[1754096090919,2.84448028,3515.6,3514.8,3.29973288]
[1754096091245,0.6293003,3515.7,3514.8,0.4547]
[1754096091608,3.28446684,3515.6,3514.8,3.29980979]
[1754096091809,2.84446684,3515.6,3514.8,0.4547]
[1754096092006,2.84438466,3515.7,3514.8,0.4547]
[1754096092211,0.55,3515.4,3514.1,0.4933]
[1754096092412,2.84511919,3514.8,3514.1,0.4933]
[1754096092665,2.84510726,3514.9,3514.1,3.33896947]
[1754096092905,0.55,3515.0,3514.1,3.33896947]
[1754096093105,2.84509372,3514.9,3514.2,0.4933]
[1754096093316,3.94728989,3514.9,3514.0,2.84569158]
[1754096093515,3.94728989,3514.9,3513.8,3.30340694]
[1754096093516,3.94722997,3514.9,3514.1,3.33895292]
[1754096093803,2.8450338,3514.9,3514.1,3.33895292]
[1754096094390,2.84512153,3514.8,3514.1,0.4933]
[1754096094698,2.84512153,3514.8,3514.1,3.33891806]
[1754096094699,2.84512896,3514.8,3514.1,3.33891806]
[1754096094905,2.84512896,3514.8,3514.1,0.4933]
[1754096095095,0.8173129,3514.7,3514.1,0.4933]
[1754096095471,0.8173129,3514.7,3514.1,3.33896773]
[1754096095769,0.8173129,3514.7,3514.1,0.4933]
[1754096095971,3.66250648,3514.7,3514.1,0.4933]
[1754096096173,0.9597129,3514.7,3514.2,0.1424]
[1754096096471,3.80491049,3514.7,3514.2,0.1424]
[1754096096798,3.55428073,3514.6,3514.2,0.1424]
[1754096097405,0.70899447,3514.6,3514.2,0.1424]
[1754096098704,3.5542795,3514.6,3514.2,0.1424]
[1754096099005,2.84535495,3514.5,3513.8,2.84591032]
[1754096099319,3.42775495,3514.5,3514.0,0.1424]
[1754096099615,5.9779265,3514.4,3514.0,0.1424]
[1754096100209,8.82338564,3514.4,3514.0,0.1424]
[1754096100376,0.44,3514.3,3513.5,0.4953]
[1754096100709,0.1424,3514.1,3513.6,0.1424]
[1754096100905,3.42809823,3514.1,3513.6,0.1424]
[1754096101111,0.1424,3514.1,3513.7,0.4933]
[1754096101296,0.1424,3514.7,3514.0,0.1424]
[1754096101472,4.753,3515.1,3514.1,0.9508]
[1754096101676,4.753,3515.1,3514.7,2.84518335]
[1754096101909,0.44,3515.7,3514.2,0.9508]
[1754096102214,0.1424,3514.8,3514.3,0.1424]
[1754096102418,3.39519632,3514.7,3514.4,0.4933]
[1754096102787,0.1424,3514.5,3514.4,0.4933]
[1754096103593,2.84471457,3515.3,3514.6,2.84524655]
[1754096103775,1.0448266,3515.2,3514.7,0.4933]
[1754096103975,4.759,3515.4,3514.8,0.9508]
[1754096104194,0.44,3516.1,3514.8,0.9508]
[1754096104195,0.1424,3515.5,3515.1,2.84480388]
[1754096104492,0.1424,3515.5,3515.0,0.1424]
[1754096104493,0.1424,3515.5,3515.2,3.79557673]
[1754096104699,4.759,3515.8,3515.4,0.1424]
[1754096104904,5.57754865,3515.8,3515.4,0.1424]
[1754096105070,5.57754865,3515.8,3511.0,3.53812904]
[1754096105071,3.44,3515.7,3514.8,0.4933]
[1754096105272,3.44,3515.7,3515.0,0.1424]
[1754096105273,3.1424,3515.5,3515.0,0.1424]
[1754096105473,0.1424,3515.5,3515.0,0.1424]
[1754096105770,2.84473376,3515.3,3515.0,0.1424]
[1754096105981,2.84483518,3515.2,3515.0,0.1424]
[1754096106187,2.84483518,3515.2,3514.8,0.6357]
[1754096106425,2.84382692,3516.4,3515.2,2.84478834]
[1754096106600,4.755,3516.3,3515.3,0.4933]
[1754096107111,2.8440424,3516.2,3515.5,2.84453398]
[1754096107475,2.8440424,3516.2,3515.6,0.4933]
[1754096107811,1.158808,3516.1,3515.6,0.4933]
[1754096108014,1.158808,3516.1,3515.5,2.84451625]
[1754096108201,1.158808,3516.1,3515.7,0.4933]
[1754096108513,1.158808,3516.1,3515.8,0.4933]
[1754096108717,1.14520741,3516.4,3515.8,0.4933]
[1754096109012,3.0,3516.7,3516.0,2.84414106]
[1754096109524,5.84358047,3516.7,3516.0,2.84414106]
[1754096109813,5.84358047,3516.7,3515.9,0.4933]
[1754096109814,5.84358047,3516.7,3515.9,3.33750991]
[1754096110017,4.75,3516.8,3516.0,0.4933]
[1754096110318,5.16600814,3516.8,3516.0,0.4933]
[1754096111010,0.41600814,3516.8,3516.2,2.84397274]
[1754096111210,2.844154,3517.3,3515.0,2.84491433]
[1754096111211,2.8431707,3517.2,3516.3,3.33713323]
[1754096111441,0.44,3517.1,3515.6,0.4933]
[1754096111657,2.84398492,3516.2,3515.6,0.4933]
[1754096112206,4.757,3516.4,3515.6,0.4933]
[1754096112441,2.84420758,3516.0,3515.3,0.4933]
[1754096112632,2.84422718,3515.9,3515.3,0.4933]
[1754096112944,2.84432161,3515.8,3515.3,0.4933]
[1754096113146,2.84432161,3515.8,3514.9,0.4933]
[1754096113147,0.44,3515.8,3514.9,0.4933]
[1754096113347,5.192,3515.8,3515.1,2.84484891]
[1754096113725,8.03632257,3515.8,3514.9,0.4933]
[1754096113927,5.192,3515.8,3515.1,2.84485899]
[1754096114332,2.84444529,3515.7,3514.9,0.4933]
[1754096114661,0.55,3515.7,3513.4,2.8461961]
[1754096114955,0.55,3515.7,3513.1,2.84648246]
[1754096114956,0.55,3515.5,3514.2,0.4933]
[1754096115118,2.84501329,3515.0,3514.2,0.4933]
[1754096115314,4.763,3514.9,3514.2,0.4933]
[1754096115517,7.60805872,3514.9,3514.2,0.4933]
[1754096115847,4.763,3514.9,3514.2,0.4933]
[1754096116052,2.84514005,3514.8,3514.2,0.4933]
[1754096116253,7.60804939,3514.9,3514.2,0.4933]
[1754096116428,0.1424,3514.8,3514.3,0.1424]
[1754096116950,0.55,3515.5,3513.9,0.4933]
[1754096116951,5.195,3514.7,3513.9,0.4933]
[1754096117127,4.755,3514.6,3513.9,3.33912473]
[1754096117322,0.44,3516.4,3514.0,0.9508]
[1754096117549,2.84407174,3516.1,3515.2,2.8447351]
[1754096117827,5.33279702,3516.0,3515.4,2.8446265]
[1754096118031,4.764,3516.0,3515.5,0.4933]
[1754096118228,4.764,3516.0,3515.6,0.4933]
[1754096118539,4.764,3516.0,3515.7,0.4933]
[1754096118856,0.3441,3517.0,3515.7,0.4933]
[1754096119156,2.84349489,3516.8,3515.7,0.4933]
[1754096119345,7.60342279,3516.9,3515.8,2.84430286]
[1754096119521,4.76,3516.9,3516.1,2.84404856]
[1754096120010,7.60341951,3516.9,3516.1,2.84404856]
[1754096120216,4.76,3516.9,3516.2,0.4933]
[1754096120411,5.31441,3516.9,3515.6,0.4933]
[1754096120616,0.99,3516.8,3515.6,3.33768531]
[1754096120817,2.84375572,3516.5,3515.7,2.8443797]
[1754096121013,2.84375572,3516.5,3515.6,0.4933]
[1754096121014,0.3441,3517.0,3514.9,2.84497196]
[1754096121213,0.02842,3518.3,3515.8,0.4575]
[1754096121214,4.769,3517.3,3515.8,0.4575]
[1754096121459,4.769,3517.3,3515.6,0.4933]
[1754096121460,2.84389735,3516.4,3515.6,0.4933]
[1754096121642,0.28438974,3516.3,3515.6,0.4933]
[1754096121858,0.28438974,3516.3,3515.6,3.33775825]
[1754096122517,0.28438974,3516.3,3515.7,2.84437374]
[1754096122719,0.28438974,3516.3,3515.7,2.84438376]
[1754096123541,0.28438974,3516.3,3515.6,0.4933]
[1754096123754,0.28438974,3516.3,3515.2,0.4926]
[1754096123954,5.2334,3516.5,3515.2,0.4926]
[1754096124317,2.84400132,3516.2,3515.4,2.84456966]
[1754096124524,2.84390011,3516.3,3515.4,2.84456966]
[1754096124845,5.2334,3516.5,3515.5,2.84454178]
[1754096125045,2.84360136,3516.7,3515.8,2.8442403]
[1754096125247,0.56870146,3516.6,3515.9,0.4926]
[1754096125435,3.0,3516.8,3515.9,0.4926]
[1754096125643,7.756,3516.8,3516.0,0.4567]
[1754096125837,7.756,3516.8,3516.1,0.4926]
[1754096126361,7.756,3516.8,3516.1,3.33660544]
[1754096126560,8.81592617,3516.8,3516.1,3.33660544]
[1754096127061,7.02,3517.1,3516.6,2.84362614]
[1754096127228,0.1424,3516.8,3516.7,0.4926]
[1754096127624,0.6078,3516.8,3516.3,0.1424]
[1754096127824,0.1424,3516.4,3515.9,2.98655798]
[1754096128035,0.1424,3516.5,3515.9,0.1424]
[1754096128279,0.1424,3516.5,3516.0,0.4926]
[1754096128424,0.1424,3516.5,3515.9,0.1424]
[1754096128620,2.98614273,3516.5,3516.1,0.4926]
[1754096128831,2.98614273,3516.5,3515.7,2.84436655]
[1754096128832,0.4654,3516.4,3515.3,0.4926]
[1754096129138,0.1424,3516.1,3515.6,0.1424]
[1754096129335,4.8884,3516.1,3515.6,0.1424]
[1754096129537,5.3538,3516.1,3515.6,0.1424]
[1754096129739,2.84439006,3515.7,3514.9,2.84501722]
[1754096129960,0.1424,3515.7,3515.2,0.1424]
[1754096130265,0.1424,3515.7,3515.3,0.4926]
[1754096131961,0.1424,3515.7,3515.2,0.1424]
[1754096131962,2.84454805,3515.5,3515.2,0.1424]
[1754096132267,2.84454805,3515.5,3515.0,0.1424]
[1754096132268,4.744,3515.4,3515.0,0.1424]
[1754096132568,4.744,3515.4,3515.0,0.635]
[1754096133062,0.1424,3515.5,3515.0,0.635]
[1754096133266,4.745,3515.4,3515.1,3.33746328]
[1754096133463,7.02,3516.1,3515.3,2.84470742]
[1754096133765,0.1424,3515.8,3515.3,0.1424]
[1754096133972,0.55,3515.7,3515.3,0.1424]
[1754096134268,0.1424,3515.4,3514.9,0.1424]
[1754096134678,4.744,3515.3,3515.0,0.4926]
[1754096134847,4.744,3515.3,3514.9,0.1424]
[1754096135051,4.744,3515.3,3515.1,0.4926]
[1754096136150,0.48864,3515.2,3514.4,0.4926]
[1754096136350,0.1424,3515.1,3514.6,0.1424]
[1754096136555,0.1424,3515.1,3514.6,0.635]
[1754096137068,2.98728991,3515.1,3514.6,0.635]
[1754096137371,0.1424,3515.1,3514.7,0.4926]
[1754096137543,4.745,3515.0,3514.6,0.1424]
[1754096137742,4.745,3515.0,3514.7,0.4926]
[1754096137964,0.1424,3515.1,3514.6,0.1424]
[1754096138275,4.8874,3515.6,3515.0,0.1424]
[1754096138480,2.84482221,3515.2,3514.5,2.84534332]
[1754096138642,2.84482221,3515.2,3514.7,0.1424]
[1754096138643,0.1424,3515.2,3514.7,0.1424]
[1754096138844,0.1424,3515.2,3514.8,0.4926]
[1754096139051,4.745,3515.1,3514.9,0.4926]
[1754096139257,0.1424,3515.2,3515.0,0.4926]
[1754096139454,0.1424,3515.2,3515.1,0.4926]
[1754096139652,4.745,3515.4,3515.1,0.4926]
[1754096139872,4.745,3515.4,3515.0,0.1424]
[1754096140079,3.06042349,3516.1,3515.0,0.1424]
[1754096140080,0.001,3516.2,3515.2,0.4926]
[1754096140281,4.745,3516.1,3515.3,2.84470742]
[1754096140480,0.001,3516.2,3515.4,0.9493]
[1754096140982,0.001,3516.2,3515.6,2.84446467]
[1754096141160,0.001,3516.2,3515.5,0.9493]
[1754096141406,0.001,3516.2,3516.1,2.84406018]
[1754096141856,0.001,3516.2,3516.1,3.33666018]
[1754096142061,0.001,3516.2,3516.1,3.79336018]
[1754096142462,0.001,3516.2,3516.1,3.33666018]
[1754096142891,0.001,3516.2,3516.1,0.4926]
[1754096143093,2.84505301,3516.2,3514.7,7.59419304]
[1754096143392,4.75,3516.2,3515.4,2.84456042]
[1754096143571,2.84453965,3515.6,3514.8,0.4926]
[1754096143767,3.4654,3516.1,3514.8,0.4926]
[1754096143974,7.59404846,3516.2,3514.8,0.4926]
[1754096143975,2.84479163,3515.2,3514.8,0.4926]
[1754096144594,2.84465064,3515.4,3514.5,0.4567]
[1754096144800,2.84493413,3515.1,3514.5,0.9493]
[1754096144959,1.35600506,3515.3,3514.5,0.4926]
[1754096145168,0.4654,3515.2,3514.0,2.84568626]
[1754096145366,2.84509417,3514.9,3514.1,0.6186182]
[1754096145589,7.5929517,3515.0,3514.2,0.4926]
[1754096145772,7.5929517,3515.0,3514.2,3.33818107]
[1754096146099,7.5929627,3515.0,3514.2,3.33819208]
[1754096146392,7.5929627,3515.0,3514.2,0.4926]
[1754096146393,4.748,3515.0,3514.2,0.4926]
[1754096146585,2.84510056,3514.9,3514.2,0.4926]
[1754096147307,0.55,3514.9,3513.9,3.3383754]
[1754096147492,3.39504393,3514.9,3514.0,2.84575981]
[1754096147670,3.39504393,3514.9,3514.0,3.33835981]
[1754096148389,3.39504393,3514.9,3514.1,2.84566077]
[1754096148595,2.845227,3514.7,3514.0,0.4926]
[1754096149005,2.84513158,3514.8,3514.0,0.4926]
[1754096149213,3.46901586,3514.8,3514.0,0.4926]
[1754096149421,0.62388428,3514.8,3514.0,0.4926]
[1754096149581,2.8452537,3514.7,3514.0,0.4926]
[1754096150208,0.1424,3514.5,3514.0,0.635]
[1754096151502,2.98776521,3514.5,3514.0,0.1424]
[1754096151704,0.58329713,3514.4,3514.0,0.1424]
[1754096151893,0.1424,3514.5,3514.1,3.79871594]
[1754096152095,0.1424,3514.5,3514.2,0.4808]
[1754096152294,0.1424,3514.5,3514.3,0.4808]
[1754096152587,7.02,3515.1,3514.4,2.84543592]
[1754096152905,7.02,3515.1,3514.6,2.84524705]
[1754096153295,7.02,3515.1,3514.7,0.4808]
[1754096153619,2.84525146,3514.7,3513.9,0.4808]
[1754096153817,0.443,3514.7,3513.9,0.4808]
[1754096154417,3.2882621,3514.7,3513.9,3.32663232]
[1754096155595,3.2882621,3514.7,3513.8,0.002]
[1754096155596,5.188,3514.7,3513.8,0.002]
[1754096155802,0.55,3514.3,3513.8,0.002]
[1754096155997,2.84560154,3514.2,3513.8,0.002]
[1754096156200,0.443,3514.2,3513.8,0.002]
[1754096156420,0.55,3514.3,3513.8,0.4828]
[1754096156616,0.38382621,3514.6,3513.9,0.4808]
[1754096156828,3.0,3515.0,3513.9,3.32663255]
[1754096157137,3.0,3515.0,3514.2,2.84552039]
[1754096157444,3.0,3515.1,3514.4,0.002]
[1754096158535,5.08975283,3515.1,3514.4,0.002]
[1754096158850,6.39535495,3514.5,3514.4,0.002]
[1754096159006,11.14035495,3514.5,3514.4,0.002]
[1754096159206,11.58335495,3514.5,3514.4,0.002]
[1754096160431,3.0,3514.5,3514.4,0.4828]
[1754096161843,6.61985495,3514.5,3514.4,0.002]
[1754096162341,0.7745,3514.5,3514.4,0.002]
[1754096162543,0.9169,3514.5,3514.4,0.002]
[1754096162723,3.76225495,3514.5,3514.4,0.002]
[1754096163111,4.31225495,3514.5,3514.4,0.002]
[1754096163839,4.75525495,3514.5,3514.4,0.002]
[1754096164043,9.05725495,3514.5,3514.4,0.002]
[1754096164247,9.50025495,3514.5,3514.4,0.002]
[1754096164411,9.05725495,3514.5,3514.4,0.002]
[1754096164612,4.31225495,3514.5,3514.4,0.002]
[1754096164846,9.05725495,3514.5,3514.4,0.002]
[1754096165041,4.31225495,3514.5,3514.4,0.002]
[1754096165257,9.05725495,3514.5,3514.4,0.002]
[1754096165569,4.31225495,3514.5,3514.4,0.002]
[1754096165844,0.1424,3514.5,3514.4,0.4828]
[1754096166008,0.1424,3514.5,3514.4,0.9551]
[1754096166412,0.1424,3514.5,3514.4,3.80053592]
[1754096166612,2.84513177,3514.8,3514.4,0.002]
[1754096166811,2.84520227,3514.7,3514.4,0.002]
[1754096167053,2.84519651,3514.7,3514.4,0.002]
[1754096167213,0.1424,3514.8,3514.4,0.002]
[1754096167214,8.03233709,3514.6,3514.4,0.002]
[1754096167414,2.98775495,3514.5,3514.4,0.002]
[1754096168141,0.1424,3514.5,3514.4,0.002]
[1754096168457,0.1424,3514.5,3514.4,0.9551]
[1754096169749,3.53775495,3514.5,3514.4,0.002]
[1754096169933,5.09346082,3514.5,3514.4,0.002]
[1754096172015,9.39446082,3514.5,3514.4,0.002]
[1754096173530,9.83746082,3514.5,3514.4,0.002]
[1754096174548,9.39446082,3514.5,3514.4,0.002]
[1754096175261,4.65046082,3514.5,3514.4,0.002]
[1754096175442,0.1424,3514.5,3514.4,0.4828]
[1754096175643,4.8854,3514.5,3514.4,0.4828]
[1754096175838,0.1424,3514.5,3514.4,0.4828]
[1754096176516,4.743,3514.5,3514.4,0.002]
[1754096176821,4.743,3514.5,3514.4,0.4828]
[1754096176822,5.2616,3514.5,3514.4,0.4828]
[1754096177052,2.84503553,3514.9,3514.4,0.4828]
[1754096177053,2.84528184,3514.6,3514.4,0.4828]
[1754096177256,4.743,3514.5,3514.4,0.4828]
[1754096177435,4.743,3514.5,3514.4,0.002]
[1754096177616,7.58835495,3514.5,3514.4,0.002]
[1754096177840,8.13835495,3514.5,3514.4,0.002]
[1754096178048,9.4521136,3514.5,3514.4,0.002]
[1754096179053,9.8951136,3514.5,3514.4,0.002]
[1754096180053,18.6261136,3514.5,3514.4,0.002]
[1754096180355,7.02,3514.5,3514.4,0.4828]
[1754096182055,11.763,3514.5,3514.4,0.4828]
[1754096182223,11.763,3514.5,3514.4,0.9447]
[1754096182422,14.60835495,3514.5,3514.4,0.9447]
[1754096182734,11.763,3514.5,3514.4,0.4828]
[1754096183631,11.762,3514.5,3514.4,0.4828]
[1754096183847,7.02,3514.5,3514.4,0.4828]
[1754096184167,11.762,3514.5,3514.4,0.4828]
[1754096184350,11.762,3514.5,3514.4,0.002]
[1754096184351,16.90269512,3514.5,3514.4,0.002]
[1754096184521,17.35979512,3514.5,3514.4,0.002]
[1754096185055,16.90269512,3514.5,3514.4,0.002]
[1754096185757,17.35979512,3514.5,3514.4,0.002]
[1754096186484,17.50219512,3514.5,3514.4,0.002]
[1754096186764,17.1586882,3514.5,3514.4,0.002]
[1754096186925,17.6157882,3514.5,3514.4,0.002]
[1754096187467,12.8737882,3514.5,3514.4,0.002]
[1754096187671,17.6147882,3514.5,3514.4,0.002]
[1754096190067,2.00133325,3514.5,3514.4,0.002]
[1754096190263,0.001,3514.7,3514.4,0.489]
[1754096190563,0.551,3514.7,3514.5,0.4619]
[1754096190766,0.551,3514.7,3514.6,0.487]
[1754096191788,3.39619876,3514.7,3514.6,0.487]
[1754096191963,0.001,3514.7,3514.6,0.9489]
[1754096192278,4.741,3514.7,3514.6,0.9489]
[1754096192578,0.001,3514.7,3514.6,0.9489]
[1754096192887,4.741,3514.7,3514.6,0.9489]
[1754096193085,4.741,3514.7,3514.4,0.002]
[1754096193086,2.84535495,3514.5,3514.4,0.002]
[1754096193381,7.58435495,3514.5,3514.4,0.489]
[1754096193680,4.739,3514.5,3514.4,0.9509]
[1754096193994,0.001,3514.7,3514.4,0.9509]
[1754096194300,4.74,3514.7,3514.6,2.84527399]
[1754096194790,4.74,3514.7,3514.6,3.79417399]
[1754096194945,4.74,3514.7,3514.6,0.9489]
[1754096195151,4.74,3514.7,3514.6,0.487]
[1754096195751,4.74,3514.7,3514.6,0.9489]
[1754096197282,4.74,3514.7,3514.4,0.002]
[1754096197484,4.74,3514.7,3514.5,0.487]
[1754096197732,2.84534786,3514.6,3514.5,0.487]
[1754096199610,2.84535495,3514.5,3514.4,0.002]
[1754096199754,7.58235495,3514.5,3514.4,0.002]
[1754096200255,7.72475495,3514.5,3514.4,0.002]
[1754096200902,8.27475495,3514.5,3514.4,0.002]
[1754096201074,9.4184099,3514.5,3514.4,0.489]
[1754096201270,9.4184099,3514.5,3514.4,0.002]
[1754096201682,9.8755099,3514.5,3514.4,0.002]
[1754096202083,9.4184099,3514.5,3514.4,0.002]
[1754096202281,8.27475495,3514.5,3514.4,0.489]
[1754096203012,0.1424,3514.5,3514.4,0.489]
[1754096203312,4.8784,3514.5,3514.4,0.9509]
[1754096203978,7.72375495,3514.5,3514.4,0.489]
[1754096204699,0.1424,3514.5,3514.4,0.489]
[1754096204997,4.8774,3514.5,3514.4,0.9509]
[1754096205974,0.001,3514.7,3514.4,0.9509]
[1754096206165,4.735,3514.5,3514.4,0.002]
[1754096206797,4.735,3514.5,3514.4,0.9509]
[1754096208199,4.735,3514.5,3514.4,0.002]
[1754096208510,4.8774,3514.5,3514.4,0.002]
[1754096208801,7.72275495,3514.5,3514.4,0.489]
[1754096210271,7.72275495,3514.5,3514.4,0.002]
[1754096210721,18.75605188,3514.5,3514.4,0.002]
[1754096210869,19.16365188,3514.5,3514.4,0.002]
[1754096211499,14.59835495,3514.5,3514.4,0.489]
[1754096211701,14.59835495,3514.5,3514.4,0.002]
[1754096212468,18.62195495,3514.5,3514.4,0.002]
[1754096213703,15.07195495,3514.5,3514.4,0.002]
[1754096213881,16.86377022,3514.5,3514.4,0.002]
[1754096214792,12.84377022,3514.5,3514.4,1e-08]
[1754096215904,10.37177022,3514.5,3514.4,1e-08]
[1754096216076,15.10377022,3514.5,3514.4,1e-08]
[1754096217807,15.10377022,3514.5,3514.4,1.00000001]
[1754096218012,9.89817022,3514.5,3514.4,1.00000001]
[1754096218190,14.62917022,3514.5,3514.4,1.00000001]
[1754096218585,15.10277022,3514.5,3514.4,1.00000001]
[1754096219810,15.10277022,3514.5,3514.0,0.002]
[1754096219811,3.39567883,3514.1,3514.0,0.002]
[1754096220011,8.74980435,3514.1,3514.0,0.002]
[1754096220235,9.22340435,3514.1,3514.0,0.002]
[1754096220914,9.22340435,3514.1,3513.8,0.002]
[1754096220915,5.1068408,3513.9,3513.8,0.002]
[1754096221213,9.9792408,3513.9,3513.8,0.002]
[1754096221410,12.54710531,3513.9,3513.8,0.002]
[1754096221610,12.54710531,3513.9,3511.9,0.14870812]
[1754096221611,2.84680221,3512.8,3511.9,0.14870812]
[1754096221914,2.84665091,3512.9,3512.8,0.4795]
[1754096222208,7.57565091,3512.9,3512.8,0.4795]
[1754096222412,4.729,3512.9,3512.8,0.9504]
[1754096222778,4.8714,3512.9,3512.8,0.9504]
[1754096223102,2.84705614,3512.4,3512.3,0.1424]
[1754096223412,7.57705614,3512.4,3511.0,2.84817091]
[1754096223615,2.84746148,3511.9,3510.8,2.84827445]
[1754096223912,7.57646148,3511.9,3511.7,0.4795]
[1754096224297,8.61884331,3511.9,3511.4,0.4795]
[1754096224727,8.61884331,3511.9,3511.6,0.4795]
[1754096225133,8.73202893,3511.9,3511.6,0.4795]
[1754096225931,4.729,3511.9,3511.8,0.9524]
[1754096227802,0.55,3512.6,3511.8,0.9524]
[1754096227996,7.57497508,3512.5,3511.9,0.4795]
[1754096228234,2.84697508,3512.5,3511.9,0.4795]
[1754096228441,6.84,3512.7,3511.9,0.4795]
[1754096228442,4.728,3512.4,3511.9,0.85949418]
[1754096228732,4.728,3512.3,3512.0,0.9504]
[1754096228938,4.728,3512.2,3512.1,3.79769933]
[1754096229233,4.728,3512.2,3512.1,0.9504]
[1754096229936,0.21309709,3513.0,3512.1,3.79766979]
[1754096230243,4.728,3512.9,3512.4,2.84698557]
[1754096230638,4.728,3512.9,3512.5,3.79731454]
[1754096230841,1.0236,3513.6,3512.1,0.37999399]
[1754096230842,7.02,3513.8,3512.2,2.84721826]
[1754096231028,2.8461553,3513.6,3512.7,2.84673494]
[1754096231201,2.8461553,3513.6,3512.5,2.84690882]
[1754096231202,2.8461553,3513.6,3512.8,3.79712284]
[1754096231541,4.727,3513.7,3512.8,3.79712284]
[1754096231542,2.84618159,3513.5,3512.9,0.4795]
[1754096231739,0.55,3513.3,3512.4,0.4795]
[1754096231944,2.84695306,3512.6,3512.4,0.4795]
[1754096232145,4.727,3512.5,3512.4,0.4795]
[1754096232842,3.3971354,3512.4,3511.9,0.4709]
[1754096233048,3.3971354,3512.4,3512.1,0.4795]
[1754096233049,0.55,3512.4,3512.1,0.4795]
[1754096233545,0.1424,3512.2,3511.9,0.4709]
[1754096233733,4.726,3512.1,3511.9,0.4709]
[1754096233921,0.1424,3512.0,3511.9,0.4709]
[1754096234117,0.1424,3512.0,3511.8,0.002]
[1754096234344,0.62924,3512.0,3511.8,0.002]
[1754096234515,0.55,3511.9,3511.8,0.002]
[1754096235209,3.39746148,3511.9,3511.8,0.002]
[1754096235405,0.55,3511.9,3511.8,0.002]
[1754096236151,0.4736,3512.9,3511.8,0.002]
[1754096236332,0.1424,3512.3,3511.8,1.0948]
[1754096236515,4.725,3512.2,3511.9,0.9504]
[1754096236715,4.725,3512.2,3512.0,3.79776678]
[1754096236914,4.725,3512.2,3512.0,2.84736678]
[1754096237141,4.725,3512.2,3512.1,0.9504]
[1754096237450,4.725,3512.2,3511.8,0.1444]
[1754096237451,0.55,3512.1,3511.8,0.1444]
[1754096237755,0.1424,3511.9,3511.8,0.4815]
[1754096237944,5.4174,3511.9,3511.8,0.002]
[1754096238536,5.4174,3511.9,3511.8,0.4815]
[1754096238712,6.29253803,3511.9,3511.8,0.002]
[1754096238913,6.76613803,3511.9,3511.8,0.002]
[1754096239123,6.29253803,3511.9,3511.8,0.002]
[1754096239821,9.61359951,3511.9,3511.8,0.002]
[1754096241225,6.76613803,3511.9,3511.8,0.002]